Workbook

Sheet Top Ranked
A1: Category | B1: TEAM NAME | C1: SUPPORTED WEIGHT [lbs] | D1: BRIDGE WEIGHT [lbs] | E1: EFFICIENCY | F1: RANKING
A2: 10Family | B2: =Family!B2 -> The Joys of Engineering | C2: =Family!C2 -> 202 | D2: =Family!D2 -> 0.295 | E2: =Family!E2 -> 684.7457627 | F2: =Family!F2&"st" -> 1st
A3: 11Family | B3: =Family!B3 -> Bridge Building Buckeyes | C3: =Family!C3 -> 150 | D3: =Family!D3 -> 0.315 | E3: =Family!E3 -> 476.1904762 | F3: =Family!F3&"nd" -> 2nd
A4: 12Family | B4: =Family!B4 -> Tacoma Bridge Crew | C4: =Family!C4 -> 208 | D4: =Family!D4 -> 0.665 | E4: =Family!E4 -> 312.7819549 | F4: =Family!F4&"rd" -> 3rd
A5: 1G 4-6 | B5: ='G 4-6'!B2 -> Bridgehead 3 | C5: ='G 4-6'!C2 -> 38 | D5: ='G 4-6'!D2 -> 0.4 | E5: ='G 4-6'!E2 -> 95 | F5: ='G 4-6'!F2&"st" -> 1st
A6: 2G 4-6 | B6: ='G 4-6'!B3 -> Knowledge Kickers | C6: ='G 4-6'!C3 -> 50 | D6: ='G 4-6'!D3 -> 0.585 | E6: ='G 4-6'!E3 -> 85.47008547 | F6: ='G 4-6'!F3&"nd" -> 2nd
A7: 3G 4-6 | B7: ='G 4-6'!B4 -> Bridge Masters | C7: ='G 4-6'!C4 -> 24 | D7: ='G 4-6'!D4 -> 0.345 | E7: ='G 4-6'!E4 -> 69.56521739 | F7: ='G 4-6'!F4&"rd" -> 3rd
A8: 4G 7-8 | B8: ='G 7-8'!B2 -> Team Brane | C8: ='G 7-8'!C2 -> 70 | D8: ='G 7-8'!D2 -> 0.185 | E8: ='G 7-8'!E2 -> 378.3783784 | F8: ='G 7-8'!F2&"st" -> 1st
A9: 5G 7-8 | B9: ='G 7-8'!B3 -> Comets #1 | C9: ='G 7-8'!C3 -> 46 | D9: ='G 7-8'!D3 -> 0.31 | E9: ='G 7-8'!E3 -> 148.3870968 | F9: ='G 7-8'!F3&"nd" -> 2nd
A10: 6G 7-8 | B10: ='G 7-8'!B4 -> The Dudesons | C10: ='G 7-8'!C4 -> 22 | D10: ='G 7-8'!D4 -> 0.18 | E10: ='G 7-8'!E4 -> 122.2222222 | F10: ='G 7-8'!F4&"rd" -> 3rd
A11: 7G 9-12 | B11: ='G 9-12'!B2 -> You BETTer believe it | C11: ='G 9-12'!C2 -> 120 | D11: ='G 9-12'!D2 -> 0.195 | E11: ='G 9-12'!E2 -> 615.3846154 | F11: ='G 9-12'!F2&"st" -> 1st
A12: 8G 9-12 | B12: ='G 9-12'!B3 -> Warriors Blew a 3-1 Lead | C12: ='G 9-12'!C3 -> 124 | D12: ='G 9-12'!D3 -> 0.3 | E12: ='G 9-12'!E3 -> 413.3333333 | F12: ='G 9-12'!F3&"nd" -> 2nd
A13: 9G 9-12 | B13: ='G 9-12'!B4 -> HSM | C13: ='G 9-12'!C4 -> 130 | D13: ='G 9-12'!D4 -> 0.375 | E13: ='G 9-12'!E4 -> 346.6666667 | F13: ='G 9-12'!F4&"rd" -> 3rd
C17: Elementary School - Blue Neck Ribbon
C18: Middle School - Green Neck Ribbon
C19: High School - Gold Neck Ribbon

Sheet Family
A1: TEAM | B1: TEAM NAME | C1: LOAD WEIGHT [lbs] | D1: BRIDGE WEIGHT [lbs] | E1: EFFICIENCY | F1: RANK
A2: =Complete!B79 -> S3 | B2: =Complete!C79 -> The Joys of Engineering | C2: =Complete!D79 -> 202 | D2: =Complete!E79 -> 0.295 | E2: =Complete!F79 -> 684.7457627 | F2: =RANK(E2,E$2:E$21) -> 1
A3: =Complete!B80 -> S4 | B3: =Complete!C80 -> Bridge Building Buckeyes | C3: =Complete!D80 -> 150 | D3: =Complete!E80 -> 0.315 | E3: =Complete!F80 -> 476.1904762 | F3: 2
A4: =Complete!B81 -> S6 | B4: =Complete!C81 -> Tacoma Bridge Crew | C4: =Complete!D81 -> 208 | D4: =Complete!E81 -> 0.665 | E4: =Complete!F81 -> 312.7819549 | F4: 3
A5: =Complete!B85 -> S14 | B5: =Complete!C85 -> Oak Street Boyz | C5: =Complete!D85 -> 94 | D5: =Complete!E85 -> 0.655 | E5: =Complete!F85 -> 143.5114504 | F5: 4
A6: =Complete!B84 -> S11 | B6: =Complete!C84 -> Bridge Trolls | C6: =Complete!D84 -> 50 | D6: =Complete!E84 -> 0.48 | E6: =Complete!F84 -> 104.1666667 | F6: 5
A7: =Complete!B82 -> S7 | B7: =Complete!C82 -> Nathan Huddleston (Huddle time) | C7: =Complete!D82 -> 4 | D7: =Complete!E82 -> 0.165 | E7: =Complete!F82 -> 24.24242424 | F7: 6
A8: =Complete!B83 -> S8 | B8: =Complete!C83 -> Nathan Huddleston | C8: =Complete!D83 -> 1 | D8: =Complete!E83 -> 1 | E8: =Complete!F83 -> 1 | F8: 7
A9: =Complete!B86 -> 0 | B9: =Complete!C86 -> 0 | C9: =Complete!D86 -> 1 | D9: =Complete!E86 -> 1 | E9: =Complete!F86 -> 1 | F9: 7
A10: =Complete!B87 -> 0 | B10: =Complete!C87 -> 0 | C10: =Complete!D87 -> 1 | D10: =Complete!E87 -> 1 | E10: =Complete!F87 -> 1 | F10: 7
A11: =Complete!B88 -> 0 | B11: =Complete!C88 -> 0 | C11: =Complete!D88 -> 1 | D11: =Complete!E88 -> 1 | E11: =Complete!F88 -> 1 | F11: 7
A12: =Complete!B89 -> 0 | B12: =Complete!C89 -> 0 | C12: =Complete!D89 -> 1 | D12: =Complete!E89 -> 1 | E12: =Complete!F89 -> 1 | F12: 7
A13: =Complete!B90 -> 0 | B13: =Complete!C90 -> 0 | C13: =Complete!D90 -> 1 | D13: =Complete!E90 -> 1 | E13: =Complete!F90 -> 1 | F13: 7
A14: =Complete!B91 -> 0 | B14: =Complete!C91 -> 0 | C14: =Complete!D91 -> 1 | D14: =Complete!E91 -> 1 | E14: =Complete!F91 -> 1 | F14: 7
A15: =Complete!B92 -> 0 | B15: =Complete!C92 -> 0 | C15: =Complete!D92 -> 1 | D15: =Complete!E92 -> 1 | E15: =Complete!F92 -> 1 | F15: 7
A16: =Complete!B93 -> 0 | B16: =Complete!C93 -> 0 | C16: =Complete!D93 -> 1 | D16: =Complete!E93 -> 1 | E16: =Complete!F93 -> 1 | F16: 7
A17: =Complete!B94 -> 0 | B17: =Complete!C94 -> 0 | C17: =Complete!D94 -> 1 | D17: =Complete!E94 -> 1 | E17: =Complete!F94 -> 1 | F17: 7
A18: =Complete!B95 -> 0 | B18: =Complete!C95 -> 0 | C18: =Complete!D95 -> 1 | D18: =Complete!E95 -> 1 | E18: =Complete!F95 -> 1 | F18: 7
A19: =Complete!B96 -> 0 | B19: =Complete!C96 -> 0 | C19: =Complete!D96 -> 1 | D19: =Complete!E96 -> 1 | E19: =Complete!F96 -> 1 | F19: 7
A20: =Complete!B97 -> 0 | B20: =Complete!C97 -> 0 | C20: =Complete!D97 -> 1 | D20: =Complete!E97 -> 1 | E20: =Complete!F97 -> 1 | F20: 7
A21: =Complete!B98 -> 0 | B21: =Complete!C98 -> 0 | C21: =Complete!D98 -> 1 | D21: =Complete!E98 -> 1 | E21: =Complete!F98 -> 1 | F21: 7

Sheet G 4-6
A1: TEAM | B1: TEAM NAME | C1: LOAD WEIGHT [lbs] | D1: BRIDGE WEIGHT [lbs] | E1: EFFICIENCY | F1: RANK
A2: =Complete!B6 -> S2 | B2: =Complete!C6 -> Bridgehead 3 | C2: =Complete!D6 -> 38 | D2: =Complete!E6 -> 0.4 | E2: =Complete!F6 -> 95 | F2: =RANK(E2,E$2:E$21) -> 1
A3: =Complete!B5 -> S1 | B3: =Complete!C5 -> Knowledge Kickers | C3: =Complete!D5 -> 50 | D3: =Complete!E5 -> 0.585 | E3: =Complete!F5 -> 85.47008547 | F3: 2
A4: =Complete!B8 -> S13 | B4: =Complete!C8 -> Bridge Masters | C4: =Complete!D8 -> 24 | D4: =Complete!E8 -> 0.345 | E4: =Complete!F8 -> 69.56521739 | F4: 3
A5: =Complete!B3 -> F1 | B5: =Complete!C3 -> Slippery Penguins | C5: =Complete!D3 -> 1 | D5: =Complete!E3 -> 1 | E5: =Complete!F3 -> 1 | F5: 4
A6: =Complete!B4 -> F2 | B6: =Complete!C4 -> purple penguins | C6: =Complete!D4 -> 1 | D6: =Complete!E4 -> 1 | E6: =Complete!F4 -> 1 | F6: 4
A7: =Complete!B7 -> S9 | B7: =Complete!C7 -> test | C7: =Complete!D7 -> 1 | D7: =Complete!E7 -> 1 | E7: =Complete!F7 -> 1 | F7: 4
A8: =Complete!B9 -> 0 | B8: =Complete!C9 -> 0 | C8: =Complete!D9 -> 1 | D8: =Complete!E9 -> 1 | E8: =Complete!F9 -> 1 | F8: 4
A9: =Complete!B10 -> 0 | B9: =Complete!C10 -> 0 | C9: =Complete!D10 -> 1 | D9: =Complete!E10 -> 1 | E9: =Complete!F10 -> 1 | F9: 4
A10: =Complete!B11 -> 0 | B10: =Complete!C11 -> 0 | C10: =Complete!D11 -> 1 | D10: =Complete!E11 -> 1 | E10: =Complete!F11 -> 1 | F10: 4
A11: =Complete!B12 -> 0 | B11: =Complete!C12 -> 0 | C11: =Complete!D12 -> 1 | D11: =Complete!E12 -> 1 | E11: =Complete!F12 -> 1 | F11: 4
A12: =Complete!B13 -> 0 | B12: =Complete!C13 -> 0 | C12: =Complete!D13 -> 1 | D12: =Complete!E13 -> 1 | E12: =Complete!F13 -> 1 | F12: 4
A13: =Complete!B14 -> 0 | B13: =Complete!C14 -> 0 | C13: =Complete!D14 -> 1 | D13: =Complete!E14 -> 1 | E13: =Complete!F14 -> 1 | F13: 4
A14: =Complete!B15 -> 0 | B14: =Complete!C15 -> 0 | C14: =Complete!D15 -> 1 | D14: =Complete!E15 -> 1 | E14: =Complete!F15 -> 1 | F14: 4
A15: =Complete!B16 -> 0 | B15: =Complete!C16 -> 0 | C15: =Complete!D16 -> 1 | D15: =Complete!E16 -> 1 | E15: =Complete!F16 -> 1 | F15: 4
A16: =Complete!B17 -> 0 | B16: =Complete!C17 -> 0 | C16: =Complete!D17 -> 1 | D16: =Complete!E17 -> 1 | E16: =Complete!F17 -> 1 | F16: 4
A17: =Complete!B18 -> 0 | B17: =Complete!C18 -> 0 | C17: =Complete!D18 -> 1 | D17: =Complete!E18 -> 1 | E17: =Complete!F18 -> 1 | F17: 4
A18: =Complete!B19 -> 0 | B18: =Complete!C19 -> 0 | C18: =Complete!D19 -> 1 | D18: =Complete!E19 -> 1 | E18: =Complete!F19 -> 1 | F18: 4
A19: =Complete!B20 -> 0 | B19: =Complete!C20 -> 0 | C19: =Complete!D20 -> 1 | D19: =Complete!E20 -> 1 | E19: =Complete!F20 -> 1 | F19: 4
A20: =Complete!B21 -> 0 | B20: =Complete!C21 -> 0 | C20: =Complete!D21 -> 1 | D20: =Complete!E21 -> 1 | E20: =Complete!F21 -> 1 | F20: 4
A21: =Complete!B22 -> 0 | B21: =Complete!C22 -> 0 | C21: =Complete!D22 -> 1 | D21: =Complete!E22 -> 1 | E21: =Complete!F22 -> 1 | F21: 4

Sheet G 7-8
A1: TEAM | B1: TEAM NAME | C1: LOAD WEIGHT [lbs] | D1: BRIDGE WEIGHT [lbs] | E1: EFFICIENCY | F1: RANK
A2: =Complete!B34 -> S5 | B2: =Complete!C34 -> Team Brane | C2: =Complete!D34 -> 70 | D2: =Complete!E34 -> 0.185 | E2: =Complete!F34 -> 378.3783784 | F2: =RANK(E2,E$2:E$21) -> 1
A3: =Complete!B33 -> F11 | B3: =Complete!C33 -> Comets #1 | C3: =Complete!D33 -> 46 | D3: =Complete!E33 -> 0.31 | E3: =Complete!F33 -> 148.3870968 | F3: 2
A4: =Complete!B29 -> F7 | B4: =Complete!C29 -> The Dudesons | C4: =Complete!D29 -> 22 | D4: =Complete!E29 -> 0.18 | E4: =Complete!F29 -> 122.2222222 | F4: 3
A5: =Complete!B26 -> F4 | B5: =Complete!C26 -> 3 Hour Power | C5: =Complete!D26 -> 40 | D5: =Complete!E26 -> 0.39 | E5: =Complete!F26 -> 102.5641026 | F5: 4
A6: =Complete!B36 -> F19 | B6: =Complete!C36 -> Edison Team #2 | C6: =Complete!D36 -> 24 | D6: =Complete!E36 -> 0.235 | E6: =Complete!F36 -> 102.1276596 | F6: 5
A7: =Complete!B37 -> F20 | B7: =Complete!C37 -> Edison Team #3 | C7: =Complete!D37 -> 25 | D7: =Complete!E37 -> 0.255 | E7: =Complete!F37 -> 98.03921569 | F7: 6
A8: =Complete!B28 -> F6 | B8: =Complete!C28 -> Bob's Builders | C8: =Complete!D28 -> 22 | D8: =Complete!E28 -> 0.225 | E8: =Complete!F28 -> 97.77777778 | F8: 7
A9: =Complete!B30 -> F8 | B9: =Complete!C30 -> Cool Creative Trolls | C9: =Complete!D30 -> 26 | D9: =Complete!E30 -> 0.285 | E9: =Complete!F30 -> 91.22807018 | F9: 8
A10: =Complete!B35 -> F18 | B10: =Complete!C35 -> Edison Team #1 | C10: =Complete!D35 -> 22 | D10: =Complete!E35 -> 0.245 | E10: =Complete!F35 -> 89.79591837 | F10: 9
A11: =Complete!B41 -> F32 | B11: =Complete!C41 -> Comets #2 | C11: =Complete!D41 -> 32 | D11: =Complete!E41 -> 0.385 | E11: =Complete!F41 -> 83.11688312 | F11: 10
A12: =Complete!B43 -> F34 | B12: =Complete!C43 -> Comets #4 | C12: =Complete!D43 -> 34 | D12: =Complete!E43 -> 0.44 | E12: =Complete!F43 -> 77.27272727 | F12: 11
A13: =Complete!B27 -> F5 | B13: =Complete!C27 -> The Triple Threat plus One | C13: =Complete!D27 -> 20 | D13: =Complete!E27 -> 0.265 | E13: =Complete!F27 -> 75.47169811 | F13: 12
A14: =Complete!B38 -> F21 | B14: =Complete!C38 -> Edison Team #4 | C14: =Complete!D38 -> 24 | D14: =Complete!E38 -> 0.34 | E14: =Complete!F38 -> 70.58823529 | F14: 13
A15: =Complete!B39 -> F22 | B15: =Complete!C39 -> Edison Team #5 | C15: =Complete!D39 -> 26 | D15: =Complete!E39 -> 0.39 | E15: =Complete!F39 -> 66.66666667 | F15: 14
A16: =Complete!B40 -> S10 | B16: =Complete!C40 -> Fluffy Unicorns | C16: =Complete!D40 -> 22 | D16: =Complete!E40 -> 0.355 | E16: =Complete!F40 -> 61.97183099 | F16: 15
A17: =Complete!B25 -> F3 | B17: =Complete!C25 -> K2C | C17: =Complete!D25 -> 26 | D17: =Complete!E25 -> 0.435 | E17: =Complete!F25 -> 59.77011494 | F17: 16
A18: =Complete!B42 -> F33 | B18: =Complete!C42 -> Comets #3 | C18: =Complete!D42 -> 24 | D18: =Complete!E42 -> 0.41 | E18: =Complete!F42 -> 58.53658537 | F18: 17
A19: =Complete!B31 -> F9 | B19: =Complete!C31 -> The Goldfish | C19: =Complete!D31 -> 10 | D19: =Complete!E31 -> 0.29 | E19: =Complete!F31 -> 34.48275862 | F19: 18
A20: =Complete!B32 -> F10 | B20: =Complete!C32 -> Kemrebelles | C20: =Complete!D32 -> 16 | D20: =Complete!E32 -> 0.505 | E20: =Complete!F32 -> 31.68316832 | F20: 19
A21: =Complete!B44 -> F35 | B21: =Complete!C44 -> Comets #5 | C21: =Complete!D44 -> 16 | D21: =Complete!E44 -> 0.545 | E21: =Complete!F44 -> 29.35779817 | F21: 20

Sheet G 9-12
A1: TEAM | B1: TEAM NAME | C1: LOAD WEIGHT [lbs] | D1: BRIDGE WEIGHT [lbs] | E1: EFFICIENCY | F1: RANK
A2: =Complete!B60 -> F30 | B2: =Complete!C60 -> You BETTer believe it | C2: =Complete!D60 -> 120 | D2: =Complete!E60 -> 0.195 | E2: =Complete!F60 -> 615.3846154 | F2: =RANK(E2,E$2:E$21) -> 1
A3: =Complete!B50 -> F15 | B3: =Complete!C50 -> Warriors Blew a 3-1 Lead | C3: =Complete!D50 -> 124 | D3: =Complete!E50 -> 0.3 | E3: =Complete!F50 -> 413.3333333 | F3: 2
A4: =Complete!B62 -> F31 | B4: =Complete!C62 -> HSM | C4: =Complete!D62 -> 130 | D4: =Complete!E62 -> 0.375 | E4: =Complete!F62 -> 346.6666667 | F4: 3
A5: =Complete!B65 -> S16 | B5: =Complete!C65 -> SHS Extras | C5: =Complete!D65 -> 116 | D5: =Complete!E65 -> 0.37 | E5: =Complete!F65 -> 313.5135135 | F5: 4
A6: =Complete!B47 -> F12 | B6: =Complete!C47 -> Arch Enemies | C6: =Complete!D47 -> 102 | D6: =Complete!E47 -> 0.35 | E6: =Complete!F47 -> 291.4285714 | F6: 5
A7: =Complete!B49 -> F14 | B7: =Complete!C49 -> Built Bett Tough | C7: =Complete!D49 -> 66 | D7: =Complete!E49 -> 0.24 | E7: =Complete!F49 -> 275 | F7: 6
A8: =Complete!B57 -> F27 | B8: =Complete!C57 -> PV Team 2(The Golden Arches) | C8: =Complete!D57 -> 80 | D8: =Complete!E57 -> 0.335 | E8: =Complete!F57 -> 238.8059701 | F8: 7
A9: =Complete!B48 -> F13 | B9: =Complete!C48 -> Finesse Kids | C9: =Complete!D48 -> 74 | D9: =Complete!E48 -> 0.395 | E9: =Complete!F48 -> 187.3417722 | F9: 8
A10: =Complete!B51 -> F16 | B10: =Complete!C51 -> Team Fortem | C10: =Complete!D51 -> 48 | D10: =Complete!E51 -> 0.305 | E10: =Complete!F51 -> 157.3770492 | F10: 9
A11: =Complete!B64 -> S15 | B11: =Complete!C64 -> Cactus Body Slam | C11: =Complete!D64 -> 42 | D11: =Complete!E64 -> 0.275 | E11: =Complete!F64 -> 152.7272727 | F11: 10
A12: =Complete!B59 -> F29 | B12: =Complete!C59 -> PV Team 4 (Friendgineering) | C12: =Complete!D59 -> 46 | D12: =Complete!E59 -> 0.315 | E12: =Complete!F59 -> 146.031746 | F12: 11
A13: =Complete!B56 -> F26 | B13: =Complete!C56 -> PV Team 1 | C13: =Complete!D56 -> 50 | D13: =Complete!E56 -> 0.42 | E13: =Complete!F56 -> 119.047619 | F13: 12
A14: =Complete!B58 -> F28 | B14: =Complete!C58 -> PV team 3 | C14: =Complete!D58 -> 40 | D14: =Complete!E58 -> 0.345 | E14: =Complete!F58 -> 115.942029 | F14: 13
A15: =Complete!B54 -> F24 | B15: =Complete!C54 -> Viscous & Delicious | C15: =Complete!D54 -> 56 | D15: =Complete!E54 -> 0.55 | E15: =Complete!F54 -> 101.8181818 | F15: 14
A16: =Complete!B55 -> F25 | B16: =Complete!C55 -> The DDD (Durability, Design, Delicacy) | C16: =Complete!D55 -> 60 | D16: =Complete!E55 -> 0.705 | E16: =Complete!F55 -> 85.10638298 | F16: 15
A17: =Complete!B52 -> F17 | B17: =Complete!C52 -> Tres Razas | C17: =Complete!D52 -> 22 | D17: =Complete!E52 -> 0.305 | E17: =Complete!F52 -> 72.13114754 | F17: 16
A18: =Complete!B61 -> S12 | B18: =Complete!C61 -> Team Alleman | C18: =Complete!D61 -> 38 | D18: =Complete!E61 -> 0.615 | E18: =Complete!F61 -> 61.78861789 | F18: 17
A19: =Complete!B53 -> F23 | B19: =Complete!C53 -> Knotty Turtles | C19: =Complete!D53 -> 22 | D19: =Complete!E53 -> 0.455 | E19: =Complete!F53 -> 48.35164835 | F19: 19
A20: =Complete!B63 -> S11 | B20: =Complete!C63 -> Team Oyana | C20: =Complete!D63 -> 26 | D20: =Complete!E63 -> 0.515 | E20: =Complete!F63 -> 50.48543689 | F20: 18
A21: =Complete!B66 -> 0 | B21: =Complete!C66 -> 0 | C21: =Complete!D66 -> 1 | D21: =Complete!E66 -> 1 | E21: =Complete!F66 -> 1 | F21: 20

Sheet Complete
B1: Elementary
A2: line # | B2: TEAM | C2: TEAM NAME | D2: LOAD WEIGHT [lbs] | E2: BRIDGE WEIGHT [lbs] | F2: EFFICIENCY | G2: RANK | H2: Weigh in order
A3: 1 | B3: F1 | C3: Slippery Penguins | D3: 1 | E3: 1 | F3: =D3/E3 -> 1 | G3: =RANK(F3,F$3:F$22) -> 4
A4: 2 | B4: F2 | C4: purple penguins | D4: 1 | E4: 1 | F4: 1 | G4: 4
A5: 3 | B5: S1 | C5: Knowledge Kickers | D5: 50 | E5: 0.585 | F5: 85.47008547 | G5: 2
A6: 4 | B6: S2 | C6: Bridgehead 3 | D6: 38 | E6: 0.4 | F6: 95 | G6: 1
A7: 5 | B7: S9 | C7: test | D7: 1 | E7: 1 | F7: 1 | G7: 4
A8: 6 | B8: S13 | C8: Bridge Masters | D8: 24 | E8: 0.345 | F8: 69.56521739 | G8: 3
A9: 7 | D9: 1 | E9: 1 | F9: 1 | G9: 4
A10: 8 | D10: 1 | E10: 1 | F10: 1 | G10: 4
A11: 9 | D11: 1 | E11: 1 | F11: 1 | G11: 4
A12: 10 | D12: 1 | E12: 1 | F12: 1 | G12: 4
A13: 11 | D13: 1 | E13: 1 | F13: 1 | G13: 4
A14: 12 | D14: 1 | E14: 1 | F14: 1 | G14: 4
A15: 13 | D15: 1 | E15: 1 | F15: 1 | G15: 4
A16: 14 | D16: 1 | E16: 1 | F16: 1 | G16: 4
A17: 15 | D17: 1 | E17: 1 | F17: 1 | G17: 4
A18: 16 | D18: 1 | E18: 1 | F18: 1 | G18: 4
A19: 17 | D19: 1 | E19: 1 | F19: 1 | G19: 4
A20: 18 | D20: 1 | E20: 1 | F20: 1 | G20: 4
A21: 19 | D21: 1 | E21: 1 | F21: 1 | G21: 4
A22: 20 | D22: 1 | E22: 1 | F22: 1 | G22: 4
B23: Middle School
B24: TEAM | C24: TEAM NAME | D24: LOAD WEIGHT [lbs] | E24: BRIDGE WEIGHT [lbs] | F24: EFFICIENCY | G24: RANK
A25: 1 | B25: F3 | C25: K2C | D25: 26 | E25: 0.435 | F25: =D25/E25 -> 59.77011494 | G25: =RANK(F25,F$25:F$44) -> 16
A26: 2 | B26: F4 | C26: 3 Hour Power | D26: 40 | E26: 0.39 | F26: 102.5641026 | G26: 4
A27: 3 | B27: F5 | C27: The Triple Threat plus One | D27: 20 | E27: 0.265 | F27: 75.47169811 | G27: 12
A28: 4 | B28: F6 | C28: Bob's Builders | D28: 22 | E28: 0.225 | F28: 97.77777778 | G28: 7
A29: 5 | B29: F7 | C29: The Dudesons | D29: 22 | E29: 0.18 | F29: 122.2222222 | G29: 3
A30: 6 | B30: F8 | C30: Cool Creative Trolls | D30: 26 | E30: 0.285 | F30: 91.22807018 | G30: 8
A31: 7 | B31: F9 | C31: The Goldfish | D31: 10 | E31: 0.29 | F31: 34.48275862 | G31: 18
A32: 8 | B32: F10 | C32: Kemrebelles | D32: 16 | E32: 0.505 | F32: 31.68316832 | G32: 19
A33: 9 | B33: F11 | C33: Comets #1 | D33: 46 | E33: 0.31 | F33: 148.3870968 | G33: 2
A34: 10 | B34: S5 | C34: Team Brane | D34: 70 | E34: 0.185 | F34: 378.3783784 | G34: 1
A35: 11 | B35: F18 | C35: Edison Team #1 | D35: 22 | E35: 0.245 | F35: 89.79591837 | G35: 9
A36: 12 | B36: F19 | C36: Edison Team #2 | D36: 24 | E36: 0.235 | F36: 102.1276596 | G36: 5
A37: 13 | B37: F20 | C37: Edison Team #3 | D37: 25 | E37: 0.255 | F37: 98.03921569 | G37: 6
A38: 14 | B38: F21 | C38: Edison Team #4 | D38: 24 | E38: 0.34 | F38: 70.58823529 | G38: 13
A39: 15 | B39: F22 | C39: Edison Team #5 | D39: 26 | E39: 0.39 | F39: 66.66666667 | G39: 14
A40: 16 | B40: S10 | C40: Fluffy Unicorns | D40: 22 | E40: 0.355 | F40: 61.97183099 | G40: 15
A41: 17 | B41: F32 | C41: Comets #2 | D41: 32 | E41: 0.385 | F41: 83.11688312 | G41: 10
A42: 18 | B42: F33 | C42: Comets #3 | D42: 24 | E42: 0.41 | F42: 58.53658537 | G42: 17
A43: 19 | B43: F34 | C43: Comets #4 | D43: 34 | E43: 0.44 | F43: 77.27272727 | G43: 11
A44: 20 | B44: F35 | C44: Comets #5 | D44: 16 | E44: 0.545 | F44: 29.35779817 | G44: 20
B45: High School
B46: TEAM | C46: TEAM NAME | D46: LOAD WEIGHT [lbs] | E46: BRIDGE WEIGHT [lbs] | F46: EFFICIENCY | G46: RANK
A47: 1 | B47: F12 | C47: Arch Enemies | D47: 102 | E47: 0.35 | F47: =D47/E47 -> 291.4285714 | G47: =RANK(F47,F$47:F$76) -> 5 | I47: 110 reloaded on trusses
A48: 2 | B48: F13 | C48: Finesse Kids | D48: 74 | E48: 0.395 | F48: 187.3417722 | G48: 8
A49: 3 | B49: F14 | C49: Built Bett Tough | D49: 66 | E49: 0.24 | F49: 275 | G49: 6
A50: 4 | B50: F15 | C50: Warriors Blew a 3-1 Lead | D50: 124 | E50: 0.3 | F50: 413.3333333 | G50: 2
A51: 5 | B51: F16 | C51: Team Fortem | D51: 48 | E51: 0.305 | F51: 157.3770492 | G51: 9
A52: 6 | B52: F17 | C52: Tres Razas | D52: 22 | E52: 0.305 | F52: 72.13114754 | G52: 16
A53: 7 | B53: F23 | C53: Knotty Turtles | D53: 22 | E53: 0.455 | F53: 48.35164835 | G53: 19
A54: 8 | B54: F24 | C54: Viscous & Delicious | D54: 56 | E54: 0.55 | F54: 101.8181818 | G54: 14
A55: 9 | B55: F25 | C55: The DDD (Durability, Design, Delicacy) | D55: 60 | E55: 0.705 | F55: 85.10638298 | G55: 15
A56: 10 | B56: F26 | C56: PV Team 1 | D56: 50 | E56: 0.42 | F56: 119.047619 | G56: 12
A57: 11 | B57: F27 | C57: PV Team 2(The Golden Arches) | D57: 80 | E57: 0.335 | F57: 238.8059701 | G57: 7
A58: 12 | B58: F28 | C58: PV team 3 | D58: 40 | E58: 0.345 | F58: 115.942029 | G58: 13
A59: 13 | B59: F29 | C59: PV Team 4 (Friendgineering) | D59: 46 | E59: 0.315 | F59: 146.031746 | G59: 11
A60: 14 | B60: F30 | C60: You BETTer believe it | D60: 120 | E60: 0.195 | F60: 615.3846154 | G60: 1
A61: 15 | B61: S12 | C61: Team Alleman | D61: 38 | E61: 0.615 | F61: 61.78861789 | G61: 17
A62: 16 | B62: F31 | C62: HSM | D62: 130 | E62: 0.375 | F62: 346.6666667 | G62: 3
A63: 17 | B63: S11 | C63: Team Oyana | D63: 26 | E63: 0.515 | F63: 50.48543689 | G63: 18
A64: 18 | B64: S15 | C64: Cactus Body Slam | D64: 42 | E64: 0.275 | F64: 152.7272727 | G64: 10
A65: 19 | B65: S16 | C65: SHS Extras | D65: 116 | E65: 0.37 | F65: 313.5135135 | G65: 4
A66: 20 | D66: 1 | E66: 1 | F66: 1 | G66: 20
A67: 21 | D67: 1 | E67: 1 | F67: 1 | G67: 20
A68: 22 | D68: 1 | E68: 1 | F68: 1 | G68: 20
A69: 23 | D69: 1 | E69: 1 | F69: 1 | G69: 20
A70: 24 | D70: 1 | E70: 1 | F70: 1 | G70: 20
A71: 25 | D71: 1 | E71: 1 | F71: 1 | G71: 20
A72: 26 | D72: 1 | E72: 1 | F72: 1 | G72: 20
A73: 27 | D73: 1 | E73: 1 | F73: 1 | G73: 20
A74: 28 | D74: 1 | E74: 1 | F74: 1 | G74: 20
A75: 29 | D75: 1 | E75: 1 | F75: 1 | G75: 20
A76: 30 | D76: 1 | E76: 1 | F76: 1 | G76: 20
B77: Family
B78: TEAM | C78: TEAM NAME | D78: LOAD WEIGHT [lbs] | E78: BRIDGE WEIGHT [lbs] | F78: EFFICIENCY | G78: RANK
A79: 1 | B79: S3 | C79: The Joys of Engineering | D79: 202 | E79: 0.295 | F79: =D79/E79 -> 684.7457627 | G79: =RANK(F79,F$79:F$98) -> 1
A80: 2 | B80: S4 | C80: Bridge Building Buckeyes | D80: 150 | E80: 0.315 | F80: 476.1904762 | G80: 2
A81: 3 | B81: S6 | C81: Tacoma Bridge Crew | D81: 208 | E81: 0.665 | F81: 312.7819549 | G81: 3
A82: 4 | B82: S7 | C82: Nathan Huddleston (Huddle time) | D82: 4 | E82: 0.165 | F82: 24.24242424 | G82: 6
A83: 5 | B83: S8 | C83: Nathan Huddleston | D83: 1 | E83: 1 | F83: 1 | G83: 7
A84: 6 | B84: S11 | C84: Bridge Trolls | D84: 50 | E84: 0.48 | F84: 104.1666667 | G84: 5
A85: 7 | B85: S14 | C85: Oak Street Boyz | D85: 94 | E85: 0.655 | F85: 143.5114504 | G85: 4
A86: 8 | D86: 1 | E86: 1 | F86: 1 | G86: 7
A87: 9 | D87: 1 | E87: 1 | F87: 1 | G87: 7
A88: 10 | D88: 1 | E88: 1 | F88: 1 | G88: 7
A89: 11 | D89: 1 | E89: 1 | F89: 1 | G89: 7
A90: 12 | D90: 1 | E90: 1 | F90: 1 | G90: 7
A91: 13 | D91: 1 | E91: 1 | F91: 1 | G91: 7
A92: 14 | D92: 1 | E92: 1 | F92: 1 | G92: 7
A93: 15 | D93: 1 | E93: 1 | F93: 1 | G93: 7
A94: 16 | D94: 1 | E94: 1 | F94: 1 | G94: 7
A95: 17 | D95: 1 | E95: 1 | F95: 1 | G95: 7
A96: 18 | D96: 1 | E96: 1 | F96: 1 | G96: 7
A97: 19 | D97: 1 | E97: 1 | F97: 1 | G97: 7
A98: 20 | D98: 1 | E98: 1 | F98: 1 | G98: 7
A99: 8
A100: 9
A101: 10
C108: qcesc jake and rily | D108: 158 | E108: 0.42 | F108: =D108/E108 -> 376.1904762
C109: qcesc 2 | D109: 26 | E109: 0.42 | F109: =D109/E109 -> 61.9047619

Sheet raw data
A1: Timestamp | B1: First Name | C1: Last Name | D1: Phone Number (with area code) | E1: E-Mail Address: | F1: City Where You Live | G1: Team Category | H1: Has Anyone on your Team Previously Participated in the QCESC Battle of the Bridge Contest? | I1: Name of School or Organization Team Associated With, If Any | J1: Team Name | K1: Total Number of People on Team | L1: Which day does your team want to participate? | M1: Does your team need financial assistance with the $25 registration fee? | N1: First Name (Team Member 1) | O1: Last Name (Team Member 1) | P1: Grade (Team Member 1) | Q1: First Name (Team Member 2) | R1: Last Name (Team Member 2) | S1: Grade (Team Member 2) | T1: First Name (Team Member 3) | U1: Last Name (Team Member 3) | V1: Grade (Team Member 3) | W1: First Name (Team Member 4) | X1: Last Name (Team Member 4) | Y1: Grade (Team Member 4) | Z1: Comments or Questions | AA1: How Do You Plan to Pay for Registration and Optional Pizza If Ordered | AB1: Total # of Cheese Pizzas | AC1: Total # of Pepperoni Pizzas | AD1: Total # of Sausage Pizzas | AE1: Total # of 2 Liter Pepsi | AF1: Total # of 2 Liter Diet Pepsi | AG1: Total # of 2 Liter Mountain Dew | AH1: Total # of 2 Liter Sierra Mist | AI1: Total # of Liter Mug Root Beer | AJ1: Total Cost of Pizza/Pop
A2: 2016-12-21T17:12:10 | B2: Chris | C2: Cournoyer | D2: 563-505-6703 | E2: chris@ccx.net | F2: leclaire | G2: Grades 4-6 (Elementry) | H2: 1 Year | I2: PV - Cody | J2: Slippery Penguins | K2: 4 | L2: Friday, January 27, 2017 (12:00 - 4:45 PM) | M2: Yes | N2: Tanner | O2: COurnoyer | P2: 2017-04-06 | Q2: Chase | R2: Cournoyer | S2: 2017-04-06 | T2: Sophie | U2: Foad | V2: 2017-04-06 | W2: Ayah | X2: AlSheikha | Y2: 2017-04-06 | Z2: Comments go here :) | AA2: Pay On-Line via PayPal or Credit Card (separate step from this registration) | AC2: 1 | AH2: 1 | AJ2: 10
A3: 2016-12-31T14:03:21 | B3: Chris testing form | C3: cournoyer | D3: 5635056703 | E3: chris@ccx.net | F3: Le Claire | G3: Grades 4-6 (Elementry) | H3: 2 Years | I3: PV | J3: purple penguins | K3: 4 | L3: Friday, January 27, 2017 (12:00 - 4:45 PM) | M3: No | N3: test | O3: test | P3: 2017-04-06 | AA3: Pay On-Line via PayPal or Credit Card (separate step from this registration)
A4: 2017-01-03T20:39:07 | B4: Michelle | C4: Barber | D4: 563-508-4791 | E4: michelle@barberfamily.com | F4: Blue Grass | G4: Grades 4-6 (Elementry) | H4: 0 Years | I4: None | J4: Knowledge Kickers | K4: 2 | L4: Saturday, January 28, 2017 (8:00 AM - 2:00 PM) | M4: No | N4: Michael | O4: Barber | P4: 2017-04-06 | Q4: Nataly | R4: Bahns | S4: 2017-04-06 | AA4: Pay On-Line via PayPal or Credit Card (separate step from this registration)
A5: 2017-01-05T09:23:18 | B5: Elizabeth | C5: Wold | D5: 5633575200 | E5: ewold@maquoketaschools.org | F5: Maquoketa | G5: Grades 7-8 (Middle) | H5: 1 Year | I5: Maquoketa Schools | J5: K2C | K5: 3 | L5: Friday, January 27, 2017 (12:00 - 4:45 PM) | M5: No | N5: Kyler | O5: Beidler | P5: 2017-07-08 | Q5: Caiden | R5: Atienza | S5: 2017-07-08 | T5: Kaleb | U5: Whaley | V5: 2017-07-08 | AA5: Pay On-Line via PayPal or Credit Card (separate step from this registration)
A6: 2017-01-05T09:26:10 | B6: Elizabeth | C6: Wold | D6: 5633575200 | E6: ewold@maquoketaschools.org | F6: Maquoketa | G6: Grades 7-8 (Middle) | H6: 1 Year | I6: Maquoketa Schools | J6: 3 Hour Power | K6: 3 | L6: Friday, January 27, 2017 (12:00 - 4:45 PM) | M6: No | N6: Adrian | O6: Albert | P6: 2017-07-08 | Q6: Wyatt | R6: Lindstrom | S6: 2017-07-08 | T6: Lee | U6: Cain | V6: 2017-07-08 | AA6: Pay On-Line via PayPal or Credit Card (separate step from this registration)
A7: 2017-01-05T09:28:44 | B7: Elizabeth | C7: Wold | D7: 5633575200 | E7: ewold@maquoketaschools.org | F7: Maquoketa | G7: Grades 7-8 (Middle) | H7: 0 Years | I7: Maquoketa Schools | J7: The Triple Threat plus One | K7: 3 | L7: Friday, January 27, 2017 (12:00 - 4:45 PM) | M7: No | N7: Faith | O7: Zabran | P7: 2017-07-08 | Q7: Alyssa | R7: Bailey | S7: 2017-07-08 | T7: Brielle | U7: Hahn | V7: 2017-07-08 | W7: Klair | X7: Simmons | Y7: 2017-07-08 | AA7: Pay On-Line via PayPal or Credit Card (separate step from this registration)
A8: 2017-01-05T09:30:34 | B8: Elizabeth | C8: Wold | D8: 5633575200 | E8: ewold@maquoketaschools.org | F8: Maquoketa | G8: Grades 7-8 (Middle) | H8: 1 Year | I8: Maquoketa Schools | J8: Bob's Builders | K8: 3 | L8: Friday, January 27, 2017 (12:00 - 4:45 PM) | M8: No | N8: Hunter | O8: Burkey | P8: 2017-07-08 | Q8: Jonathan | R8: Nikkel | S8: 2017-07-08 | T8: Cayden | U8: Oestern | V8: 2017-07-08 | AA8: Pay On-Line via PayPal or Credit Card (separate step from this registration)
A9: 2017-01-05T09:33:25 | B9: Elizabeth | C9: Wold | D9: 5633575200 | E9: ewold@maquoketaschools.org | F9: Maquoketa | G9: Grades 7-8 (Middle) | H9: 1 Year | I9: Maquoketa Schools | J9: The Dudesons | K9: 4 | L9: Friday, January 27, 2017 (12:00 - 4:45 PM) | M9: No | N9: Dane | O9: Elmegreen | P9: 2017-07-08 | Q9: Noah | R9: Nabb | S9: 2017-07-08 | T9: River | U9: Waack | V9: 2017-07-08 | W9: Zander | X9: Halverson | Y9: 2017-07-08 | AA9: Pay On-Line via PayPal or Credit Card (separate step from this registration)
A10: 2017-01-05T09:35:31 | B10: Elizabeth | C10: Wold | D10: 15633575200 | E10: ewold@maquoketaschools.org | F10: Maquoketa | G10: Grades 7-8 (Middle) | H10: 1 Year | I10: Maquoketa Schools | J10: Cool Creative Trolls | K10: 3 | L10: Friday, January 27, 2017 (12:00 - 4:45 PM) | M10: No | N10: Caitlin | O10: Yeager | P10: 2017-07-08 | Q10: Tenley | R10: Cavanagh | S10: 2017-07-08 | T10: Carley | U10: Davis | V10: 2017-07-08 | AA10: Pay On-Line via PayPal or Credit Card (separate step from this registration)
A11: 2017-01-05T09:37:23 | B11: Elizabeth | C11: Wold | D11: 5633575200 | E11: ewold@maquoketaschools.org | F11: Maquoketa | G11: Grades 7-8 (Middle) | H11: 1 Year | I11: Maquoketa Schools | J11: The Goldfish | K11: 4 | L11: Friday, January 27, 2017 (12:00 - 4:45 PM) | M11: No | N11: Charlie | O11: Nims | P11: 2017-07-08 | Q11: Gracie | R11: Blair | S11: 2017-07-08 | T11: Kaitlyn | U11: Hanken | V11: 2017-07-08 | W11: Autumn | X11: Mitts | Y11: 2017-07-08 | AA11: Pay On-Line via PayPal or Credit Card (separate step from this registration)
A12: 2017-01-05T09:39:24 | B12: Elizabeth | C12: Wold | D12: 5633575200 | E12: ewold@maquoketaschools.org | F12: Maquoketa | G12: Grades 7-8 (Middle) | H12: 1 Year | I12: Maquoketa Schools | J12: Kemrebelles | K12: 4 | L12: Friday, January 27, 2017 (12:00 - 4:45 PM) | M12: No | N12: Keeley | O12: Waack | P12: 2017-07-08 | Q12: Theresa | R12: Kunau | S12: 2017-07-08 | T12: Emma | U12: Chapin | V12: 2017-07-08 | W12: Isabelle | X12: Davis | Y12: 2017-07-08 | AA12: Pay On-Line via PayPal or Credit Card (separate step from this registration)
A13: 2017-01-07T11:19:20 | B13: Michael & Jeannie | C13: Marshall | D13: 678-896-0922 | E13: Seabeck2388@aol.com | F13: Bettendorf | G13: Grades 4-6 (Elementry) | H13: 0 Years | I13: None | J13: Bridgehead 3 | K13: 3 | L13: Saturday, January 28, 2017 (8:00 AM - 2:00 PM) | M13: No | N13: Daniel | O13: Marshall | P13: 2017-04-06 | Q13: Bennett | R13: Brown | S13: 2017-04-06 | T13: Marcus | U13: Brown | V13: 2017-04-06 | Z13: Tools: Request Graph paper, string, masking tape, floral wire, flat file, square file, caliper, extra 3rd tube glue. | AA13: Pay On-Line via PayPal or Credit Card (separate step from this registration) | AC13: 1 | AH13: 1 | AJ13: 1
A14: 2017-01-08T12:11:19 | B14: Jackie | C14: Henderson | D14: 319-631-4899 | E14: jhenderson@wl.k12.ia.us | F14: West Liberty | G14: Grades 7-8 (Middle) | H14: 0 Years | I14: West Liberty Middle School | J14: Comets #1 | K14: 4 | L14: Friday, January 27, 2017 (12:00 - 4:45 PM) | M14: No | N14: Mylei | O14: Henderson | P14: 2017-07-08 | Q14: Raquel | R14: Even | S14: 2017-07-08 | T14: Rachel | U14: Aird | V14: 2017-07-08 | W14: Jahsiah | X14: Galvan | Y14: 2017-07-08 | AA14: Pay On-Line via PayPal or Credit Card (separate step from this registration)
A15: 2017-01-09T10:49:18 | B15: Melissa | C15: Joy | D15: 3092304962 | E15: Mljoy@frontiernet.net | F15: Illinois City | G15: Family (any combination of kids and adults) - See Rule #13 | H15: 6 Years | J15: The Joys of Engineering | K15: 4 | L15: Saturday, January 28, 2017 (8:00 AM - 2:00 PM) | M15: No | N15: Dustin | O15: Joy | P15: None | Q15: Chloe | R15: Joy | S15: 2017-09-12 | T15: Owen | U15: Joy | V15: 2017-04-06 | W15: Melissa | X15: Joy | Y15: None | AA15: Mail in Check Ahead of the Event | AB15: 1 | AC15: 1 | AF15: 1 | AG15: 1 | AJ15: 20
A16: 2017-01-09T18:15:44 | B16: Ryan | C16: Gneiting | D16: 563-271-1961 | E16: ryangne@hotmail.com | F16: Bettendorf | G16: Family (any combination of kids and adults) - See Rule #13 | H16: 2 Years | J16: Bridge Building Buckeyes | K16: 4 | L16: Saturday, January 28, 2017 (8:00 AM - 2:00 PM) | M16: No | N16: Ryan | O16: Gneiting | P16: None | Q16: Justin | R16: Gneiting | S16: 2017-09-12 | T16: Kyle | U16: Gneiting | W16: Karly | X16: Gneiting | AA16: Pay On-Line via PayPal or Credit Card (separate step from this registration) | AD16: 1 | AH16: 1 | AJ16: 10
A17: 2017-01-09T18:43:06 | B17: Melinda | C17: Al Sheikha | D17: 563 650 6826 | E17: justmindy@me.com | F17: Bettendorf | G17: Grades 7-8 (Middle) | H17: 3 years | J17: Team Brane | K17: 4 | L17: Saturday, January 28, 2017 (8:00 AM - 2:00 PM) | M17: No | N17: Sami | O17: Alsheikha | P17: 2017-07-08 | Q17: Mazen | R17: Alsheikha | S17: 2017-07-08 | T17: Elizabeth | U17: Alves | V17: 2017-07-08 | W17: Clayton | X17: Shelton | Y17: 2017-07-08 | AA17: Pay On-Line via PayPal or Credit Card (separate step from this registration) | AB17: 2 | AE17: 1 | AJ17: 20
A18: 2017-01-17T13:41:17 | B18: Dan | C18: Drexler | D18: 563-650-4102 | E18: ddrexler@bettendorf.k12.ia.us | F18: Bettendorf | G18: Grades 9-12 (High School) | H18: 0 Years | I18: Bettendorf High School | J18: Arch Enemies | K18: 4 | L18: Friday, January 27, 2017 (12:00 - 4:45 PM) | M18: No | N18: Andrew | O18: Del Vecchio | P18: 2017-09-12 | Q18: Gabriel | R18: Stevens | S18: 2017-09-12 | T18: Scott | U18: Reisen | V18: 2017-09-12 | W18: Kyle | X18: Huesmann | Y18: 2017-09-12 | AA18: Mail in Check Ahead of the Event
A19: 2017-01-17T13:44:58 | B19: Dan | C19: Drexler | D19: 563-650-4102 | E19: ddrexler@bettendorf.k12.ia.us | F19: Bettendorf | G19: Grades 9-12 (High School) | H19: 0 Years | I19: Bettendorf High School | J19: Finesse Kids | K19: 4 | L19: Friday, January 27, 2017 (12:00 - 4:45 PM) | M19: No | N19: Keagan | O19: Glaus | P19: 2017-09-12 | Q19: Thomas | R19: Crowley | S19: 2017-09-12 | T19: Max | U19: Martinez | V19: 2017-09-12 | W19: Ben | X19: Houk | Y19: 2017-09-12 | AA19: Mail in Check Ahead of the Event
A20: 2017-01-17T13:48:15 | B20: Dan | C20: Drexler | D20: 563-650-4102 | E20: ddrexler@bettendorf.k12.ia.us | F20: Bettendorf | G20: Grades 9-12 (High School) | H20: 0 Years | I20: Bettendorf High School | J20: Built Bett Tough | K20: 3 | L20: Friday, January 27, 2017 (12:00 - 4:45 PM) | M20: No | N20: Kassandra | O20: Posey | P20: 2017-09-12 | Q20: Gavin | R20: McNeely | S20: 2017-09-12 | T20: Nathan | U20: Whitmer | V20: 2017-09-12 | AA20: Mail in Check Ahead of the Event
A21: 2017-01-17T13:52:00 | B21: Dan | C21: Drexler | D21: 563-650-4102 | E21: ddrexler@bettendorf.k12.ia.us | F21: Bettendorf | G21: Grades 9-12 (High School) | H21: 0 Years | I21: Bettendorf High School | J21: Warriors Blew a 3-1 Lead | K21: 4 | L21: Friday, January 27, 2017 (12:00 - 4:45 PM) | M21: No | N21: Brett | O21: Spencer | P21: 2017-09-12 | Q21: Alex | R21: Vanausdein | S21: 2017-09-12 | T21: Andrew | U21: Whiteman | V21: 2017-09-12 | W21: Ryan | X21: Schade | Y21: 2017-09-12 | AA21: Mail in Check Ahead of the Event
A22: 2017-01-17T14:57:03 | B22: Jason | C22: Franzenburg | D22: 563-349-3715 | E22: franzenburgj@davenportschools.org | F22: Davenport | G22: Grades 9-12 (High School) | H22: 0 Years | I22: Davenport West High | J22: Team Fortem | K22: 4 | L22: Friday, January 27, 2017 (12:00 - 4:45 PM) | M22: No | N22: Emily | O22: Monroe | P22: 2017-09-12 | Q22: Michael | R22: Chalupa | S22: 2017-09-12 | T22: Draven | U22: Ramirez | V22: 2017-09-12 | W22: Chase | X22: Thompson | Y22: 2017-09-12 | AA22: Pay On-Line via PayPal or Credit Card (separate step from this registration)
A23: 2017-01-17T15:00:05 | B23: Jason | C23: Franzenburg | D23: 563-349-3715 | E23: franzenburgj@davenportschools.org | F23: Davenport | G23: Grades 9-12 (High School) | H23: 0 Years | I23: Davenport West HIgh | J23: Tres Razas | K23: 4 | L23: Friday, January 27, 2017 (12:00 - 4:45 PM) | M23: Yes | N23: Micheal | O23: Thai | P23: 2017-09-12 | Q23: Glenn | R23: Nosa | S23: 2017-09-12 | T23: Tyler | U23: Williams | V23: 2017-09-12 | AA23: Pay On-Line via PayPal or Credit Card (separate step from this registration)
A24: 2017-01-17T19:15:04 | B24: Kevin | C24: Dirth | D24: 5632643593 | E24: famdirth@aol.com | F24: Muscatine | G24: Family (any combination of kids and adults) - See Rule #13 | H24: 4 Years | I24: None | J24: Tacoma Bridge Crew | K24: 4 | L24: Saturday, January 28, 2017 (8:00 AM - 2:00 PM) | M24: No | N24: Kevin | O24: Dirth | P24: None | Q24: Denise | R24: Dirth | S24: None | T24: Steven | U24: Dirth | V24: 2017-09-12 | W24: Lauren | X24: Dirth | Y24: 2017-09-12 | AA24: Pay On-Line via PayPal or Credit Card (separate step from this registration) | AD24: 2 | AG24: 1 | AH24: 1 | AJ24: 20
A25: 2017-01-18T08:37:25 | B25: Nathan | C25: Huddleston | D25: 309-945-6531 | E25: nhudd@yahoo.com | F25: Geneseo | G25: Family (any combination of kids and adults) - See Rule #13 | H25: 2 Years | I25: None | J25: Nathan Huddleston | K25: 2 | L25: Saturday, January 28, 2017 (8:00 AM - 2:00 PM) | M25: No | N25: Nathan | O25: Huddleston | P25: None | Q25: Caleb | R25: Huddleston | S25: 2017-07-08 | AA25: Pay On-Line via PayPal or Credit Card (separate step from this registration)
A26: 2017-01-18T08:39:45 | B26: Nathan | C26: Huddleston | D26: 309-945-6531 | E26: nhudd@yahoo.com | F26: Geneseo | G26: Family (any combination of kids and adults) - See Rule #13 | H26: 2 Years | I26: None | J26: Nathan Huddleston | K26: 2 | L26: Saturday, January 28, 2017 (8:00 AM - 2:00 PM) | M26: No | N26: Nathan | O26: Huddleston | P26: None | Q26: Caleb | R26: Huddleston | S26: 2017-07-08 | AA26: Pay On-Line via PayPal or Credit Card (separate step from this registration)
A27: 2017-01-18T17:54:06 | B27: Susan | C27: Witmer | D27: 309-793-5920 | E27: susan.witmer@rimsd41.org | F27: Rock Island | G27: Grades 7-8 (Middle) | H27: 0 Years | I27: Edison Junior High School - 21st CCLC Grant Programs | J27: Edison Team #1 | K27: 2 | L27: Friday, January 27, 2017 (12:00 - 4:45 PM) | M27: No | N27: Ben | O27: Abell | P27: 2017-07-08 | Q27: Logan | R27: Lambrecht | S27: 2017-07-08 | AA27: Mail in Check Ahead of the Event
A28: 2017-01-18T17:57:14 | B28: Jennifer | C28: Pfaff | D28: 309-793-5920 | E28: susan.witmer@rimsd41.org | F28: Rock Island | G28: Grades 7-8 (Middle) | H28: 0 Years | I28: Edison Junior High School - Rock Island, IL | J28: Edison Team #2 | K28: 2 | L28: Friday, January 27, 2017 (12:00 - 4:45 PM) | M28: No | N28: Naoko | O28: Saubdman | P28: 2017-07-08 | Q28: Jordan | R28: Auld | S28: 2017-07-08 | AA28: Mail in Check Ahead of the Event
A29: 2017-01-18T18:00:13 | B29: Jennifer | C29: Pfaff | D29: 309-793-5920 | E29: susan.witmer@rimsd41.org | F29: Rock Island | G29: Grades 7-8 (Middle) | H29: 0 Years | I29: Edison Junior High School - Rock Island, IL | J29: Edison Team #3 | K29: 2 | L29: Friday, January 27, 2017 (12:00 - 4:45 PM) | M29: No | N29: Yvette | O29: Asishakiye | P29: 2017-07-08 | Q29: Jennifer | R29: Lopez | S29: 2017-07-08 | Z29: If paying through a school grant (Edison) - is there a way to be billed for the teams? | AA29: Mail in Check Ahead of the Event
A30: 2017-01-18T18:02:47 | B30: Jennifer | C30: Pfaff | D30: 309-793-5920 | E30: susan.witmer@rimsd41.org | F30: Rock Island | G30: Grades 7-8 (Middle) | H30: 0 Years | I30: Edison Junior High School - Rock Island, IL | J30: Edison Team #4 | K30: 2 | L30: Friday, January 27, 2017 (12:00 - 4:45 PM) | M30: No | N30: Keaton | O30: Adams | P30: 2017-07-08 | Q30: Ni Hae | R30: Shee | S30: 2017-07-08 | AA30: Mail in Check Ahead of the Event
A31: 2017-01-18T18:04:42 | B31: Jennifer | C31: Pfaff | D31: 309-793-5920 | E31: susan.witmer@rimsd41.org | F31: Rock Island | G31: Grades 7-8 (Middle) | H31: 0 Years | I31: Edison Junior High School - Rock Island, IL | J31: Edison Team #5 | K31: 2 | L31: Friday, January 27, 2017 (12:00 - 4:45 PM) | M31: No | N31: Carenn | O31: Hayes | P31: 2017-07-08 | Q31: Ashlynn | R31: Canfield | S31: 2017-07-08 | AA31: Mail in Check Ahead of the Event
A32: 2017-01-20T21:12:02 | B32: Chris | C32: Cournoyer | D32: 5635056703 | E32: chris@ccx.net | F32: Le Claire | G32: Grades 4-6 (Elementry) | H32: 3 years | I32: testing form | J32: test | K32: 1 | L32: Saturday, January 28, 2017 (8:00 AM - 2:00 PM) | M32: No | N32: test | O32: ttt | P32: 2017-04-06 | AA32: Pay On-Line via PayPal or Credit Card (separate step from this registration)
A33: 2017-01-22T19:35:28 | B33: Darla | C33: Jones | D33: 309-737-7239 | E33: brasskatz@aol.com | F33: Rock Island | G33: Grades 7-8 (Middle) | H33: 1 Year | I33: Rivermont Collegiate | J33: Fluffy Unicorns | K33: 4 | L33: Saturday, January 28, 2017 (8:00 AM - 2:00 PM) | M33: No | N33: Angela | O33: Jones | P33: 2017-07-08 | Q33: Keval | R33: Wagher | S33: 2017-07-08 | T33: Suzy | U33: Longstaff | V33: 2017-07-08 | W33: Aidan | X33: Roach | Y33: 2017-07-08 | AA33: Pay On-Line via PayPal or Credit Card (separate step from this registration) | AB33: 1 | AE33: 1 | AJ33: 1
A34: 2017-01-23T13:49:05 | B34: Jason | C34: Franzenburg | D34: 5633493715 | E34: franzenburgj@davenportschools.org | F34: Davenport | G34: Grades 9-12 (High School) | H34: 0 Years | J34: Knotty Turtles | K34: 4 | L34: Friday, January 27, 2017 (12:00 - 4:45 PM) | M34: No | N34: Blake | O34: Hughes | P34: 2017-09-12 | Q34: Brighum | R34: Teel | S34: 2017-09-12 | T34: Aldin | U34: Isic | V34: 2017-09-12 | W34: Kaleb | X34: Schlemmer | Y34: 2017-09-12 | AA34: Pay On-Line via PayPal or Credit Card (separate step from this registration)
A35: 2017-01-23T13:52:59 | B35: Jason | C35: Franzenburg | D35: 5633493715 | E35: franzenburgj@davenportschools.org | F35: Davenport | G35: Grades 9-12 (High School) | H35: 0 Years | I35: Davenport West High | J35: Viscous & Delicious | K35: 4 | L35: Friday, January 27, 2017 (12:00 - 4:45 PM) | M35: No | N35: brendon | O35: Costello | P35: 2017-09-12 | Q35: Denisse | R35: duarte | S35: 2017-09-12 | T35: Brett | U35: Wisor | V35: 2017-09-12 | W35: Manuel | X35: Salinas | Y35: 2017-09-12 | AA35: Pay On-Line via PayPal or Credit Card (separate step from this registration)
A36: 2017-01-23T13:59:13 | B36: Jason | C36: Franzenburg | D36: 5633493715 | E36: franzenburgj@davenportschools.org | F36: Davenport | G36: Grades 9-12 (High School) | H36: 0 Years | I36: Davenport West | J36: The DDD (Durability, Design, Delicacy) | K36: 4 | L36: Friday, January 27, 2017 (12:00 - 4:45 PM) | M36: No | N36: Alexa | O36: Christiansen | P36: 2017-09-12 | Q36: Yajaira | R36: Navarro | S36: 2017-09-12 | T36: Piper | U36: Hein | V36: 2017-09-12 | W36: Zak | X36: Keel | Y36: 2017-09-12 | AA36: Pay On-Line via PayPal or Credit Card (separate step from this registration)
A37: 2017-01-23T19:17:14 | B37: Rebecca | C37: Williamsen | D37: 563-359-8344 | E37: hansker@msn.com | F37: Davenport | G37: Family (any combination of kids and adults) - See Rule #13 | H37: 9 Years | I37: None | J37: Bridge Trolls | K37: 4 | L37: Saturday, January 28, 2017 (8:00 AM - 2:00 PM) | M37: No | N37: Hannah | O37: Williamsen | P37: 2017-07-08 | Q37: Martha | R37: Fey | S37: 2017-07-08 | T37: Gary | U37: Arthur | V37: None | W37: Rebecca | X37: Williamsen | Y37: None | AA37: Pay On-Line via PayPal or Credit Card (separate step from this registration) | AD37: 1 | AH37: 1 | AJ37: 10
A38: 2017-01-24T13:08:40 | B38: Matt | C38: Stutenberg | D38: 563-320-6995 | E38: stutenbergmatt@pleasval.k12,ia,us | F38: Bettendorf | G38: Grades 9-12 (High School) | H38: 2 Years | I38: Pleasant Valley High School | J38: PV Team 1 | K38: 4 | L38: Friday, January 27, 2017 (12:00 - 4:45 PM) | M38: No | N38: Ryan | O38: Morrissey | P38: 2017-09-12 | Q38: Scott | R38: Henrichs | S38: 2017-09-12 | T38: Michael | U38: Brees | V38: 2017-09-12 | W38: McClain | X38: Acri | Y38: 2017-09-12 | AA38: Mail in Check Ahead of the Event
A39: 2017-01-24T13:10:26 | B39: Matt | C39: Stutenberg | D39: 563-320-6995 | E39: Stutenbergmatt@pleasval.k12.ia.us | F39: Bettendorf | G39: Grades 9-12 (High School) | H39: 0 Years | I39: PLeasant Valley | J39: PV Team 2 | K39: 4 | L39: Friday, January 27, 2017 (12:00 - 4:45 PM) | M39: No | N39: Jenna | O39: Aller | P39: 2017-09-12 | Q39: Sarah | R39: Hoskins | S39: 2017-09-12 | T39: Mitch | U39: Strobbe | V39: 2017-09-12 | W39: Cooper | X39: Frakes | Y39: 2017-09-12 | AA39: Mail in Check Ahead of the Event
A40: 2017-01-24T13:12:43 | B40: Matt | C40: Stutenberg | D40: 563-320-6995 | E40: stutenbergmatt@pleasval.k12.ia.us | F40: Bettendorf | G40: Grades 9-12 (High School) | H40: 0 Years | I40: Pleasant Valley | J40: PV team 3 | K40: 4 | L40: Friday, January 27, 2017 (12:00 - 4:45 PM) | M40: No | N40: Nick | O40: Schons | P40: 2017-09-12 | Q40: Ephraim | R40: Bittner | S40: 2017-09-12 | T40: Kiran | U40: Marla | V40: 2017-09-12 | AA40: Mail in Check Ahead of the Event
A41: 2017-01-24T13:16:43 | B41: Matt | C41: Stutenberg | D41: 563-320-6995 | E41: stutenbergmatt@pleasval.k12.ia.us | F41: Bettendorf | G41: Grades 9-12 (High School) | H41: 0 Years | I41: Pleasant Valley | J41: PV Team 4 | K41: 4 | L41: Friday, January 27, 2017 (12:00 - 4:45 PM) | M41: No | N41: Samantha | O41: Bladel | P41: 2017-09-12 | Q41: Jasimn | R41: Bladel | S41: 2017-09-12 | AA41: Mail in Check Ahead of the Event
A42: 2017-01-25T20:28:37 | B42: James | C42: Callahan | D42: 5636507374 | E42: CallahanJamesR@sau.edu | F42: Bettendorf | G42: Grades 9-12 (High School) | H42: 1 Year | I42: Bettendorf High School | J42: You BETTer believe it | K42: 2 | L42: Friday, January 27, 2017 (12:00 - 4:45 PM) | M42: No | N42: Jackson | O42: Callahan | P42: 2017-09-12 | Q42: Elyssa | R42: Springer | S42: 2017-09-12 | AA42: Pay On-Line via PayPal or Credit Card (separate step from this registration)
A43: 2017-01-26T15:09:30 | B43: Sister M. Benedicta | C43: Bourke, FSGM | D43: 3097867793 | E43: srmbenedicta@allemanhighschool.org | F43: Rock Island | G43: Grades 9-12 (High School) | H43: 1 Year | I43: Alleman High School | J43: Team Alleman | K43: 3 | L43: Saturday, January 28, 2017 (8:00 AM - 2:00 PM) | M43: No | N43: Dylan | O43: Fogel | P43: 2017-09-12 | Q43: Aaron | R43: Mickelson | S43: 2017-09-12 | T43: Noah | U43: Blunt | V43: 2017-09-12 | Z43: I am sorry but I did not register early enough to get the check to you before this event but I will bring a check/money with me on Saturday. If this does not work, please e-mail me and I will ask our school for the credit card to pay. What does the check need to be made out to? | AA43: Mail in Check Ahead of the Event | AC43: 1 | AE43: 1 | AJ43: 10
A44: 2017-01-26T16:03:46 | B44: Vaishali | C44: Wagher | D44: 5733087506 | E44: hvnk4@yahoo.com | F44: Coal Valley | G44: Grades 9-12 (High School) | H44: 3 years | I44: Rivermont collegiate | J44: HSM | K44: 2 | L44: Friday, January 27, 2017 (12:00 - 4:45 PM) | M44: No | N44: Nikhil | O44: WAGHER | P44: 2017-09-12 | Q44: Clay | R44: Douglas | S44: 2017-09-12 | AA44: Pay On-Line via PayPal or Credit Card (separate step from this registration) | AB44: 1 | AF44: 2 | AJ44: 20
